Cogmind - Beta 16.1 *** ADVENTURER MODE // 2026.03.21 @ 02:03:57 Player: Ms. V3-11A Result: Destroyed by G-34 Mercenary with Small Laser Performance ------------- Evolutions (0) 0 Regions Visited (1) 200 Robots Destroyed (17) 85 Value Destroyed (271) 271 Prototype IDs (0) 0 Alien Tech Used (0) 0 Bonus (0) 0 TOTAL SCORE: 556 Bonus ------- None Cogmind --------- Core Integrity 0/250 Matter 215/300 Energy 64/100 System Corruption 0% Temperature Cool (6) Movement Hovering (56) Location -10/Materials Parts ------- > --- POWER (1) -------- (None) > --- PROPULSION (2) --- Hover Unit Hover Unit > --- UTILITY (2) ------ Medium Storage Unit > --- WEAPON (2) ------- Medium Laser > --- INVENTORY (10) --- Ion Engine Hover Unit Medium Storage Unit EM Pulse Gun EM Pulse Gun Flail Peak State ------------ > --- POWER ------------ Ion Engine > --- PROPULSION ------- Aluminum Leg Aluminum Leg > --- UTILITY ---------- Small Storage Unit Large Storage Unit > --- WEAPON ----------- EM Pulse Gun Assault Rifle > --- INVENTORY -------- Ion Engine Aluminum Leg EM Pulse Gun Medium Laser Flail [Rating: 7] Favorites ----------- Power Ion Engine Engine Ion Engine Propulsion Aluminum Leg Leg Aluminum Leg Hover Unit Hover Unit Utility Small Storage Unit Storage Small Storage Unit Weapon Assault Rifle Energy Gun EM Pulse Gun Ballistic Gun Assault Rifle Build | -11 -10 ------- Run | Yrd Mat Slots Evolved . | . . Power . | . . Propulsion . | . . Utility . | . . Weapon . | . . Parts Attached 8 | 1 7 Power . | . . Engine . | . . Core . | . . Reactor . | . . Propulsion 4 | . 4 Treads . | . . Leg . | . . Wheel . | . . Hover 4 | . 4 Flight . | . . Utility 2 | . 2 Device . | . . Storage 2 | . 2 Processor . | . . Hackware . | . . Protection . | . . Artifact . | . . Weapon 2 | 1 1 Energy Gun 2 | 1 1 Energy Cannon . | . . Ballistic Gun . | . . Ballistic Cannon . | . . Launcher . | . . Special Weapon . | . . Impact Weapon . | . . Slashing Weapon . | . . Piercing Weapon . | . . Special Melee Weapon . | . . Unidentified Prototypes . | . . Parts Lost 4 | . 4 Power 1 | . 1 Propulsion 2 | . 2 Utility . | . . Weapon 1 | . 1 Highest Loss Streak 4 | . 4 To Critical Strikes . | . . Average Backups 5 | 6 5 Power 1 | 1 1 Propulsion 1 | 4 1 Utility . | . . Weapon 2 | 1 2 Tool/Special . | . . Unused Backups 12 | . 12 Power 2 | . 2 Propulsion 4 | . 4 Utility 3 | . 3 Weapon 3 | . 3 Tool/Special . | . . Average Slot Usage (%) 80 | . 80 Engine 13 | . 13 Leg 23 | . 23 Hover 2 | . 2 Storage 14 | . 14 Energy Gun 12 | . 12 Ballistic Gun 13 | . 13 Peak Build Rating 7 | 6 7 Average Rating 5 | 6 5 On Entrance 6 | 6 6 Avg Prop Armor Cover (%) . | . . Naked Turns . | . . Heaviest Build 34 | 14 34 Greatest Support 20 | 20 20 Greatest Overweight (x) 3 | . 3 Average Overweight (x) . | . . Largest Inventory Capacity 15 | 8 15 Average Capacity 10 | 8 10 Most Carried 10 | 6 10 Average Carried 5 | 4 5 Final Capacity 10 | 8 10 Final Carried 6 | 2 6 Class Distribution -------------------- 100% | Mutant Dominant Class ---------------- Mutant | -10/Materials Resources | -11 -10 ----------- Run | Yrd Mat Matter Collected 304 | 200 104 Remotely . | . . Salvage Created 609 | . 609 Parts 35 | . 35 Haulers Intercepted . | . . Recyclers Shooed 5 | . 5 Parts Field Recycled . | . . Retrieved Matter . | . . Parts Self-Destructed . | . . Prevented . | . . Parts Restored . | . . Kills | -11 -10 ------- Run | Yrd Mat Combat Hostiles Destroyed 10 | . 10 Guns 9 | . 9 AOE 1 | . 1 Classes Destroyed 6 | . 6 Worker 2 | . 2 Builder 1 | . 1 Recycler 3 | . 3 Watcher 1 | . 1 Swarmer 5 | . 5 Grunt 5 | . 5 Best Kill Streak 8 | . 8 Combat Bots Only 5 | . 5 Max Kills in Single Turn 2 | . 2 Gunslinging 1 | . 1 Exploded 1 | . 1 Melee . | . . Uniques/NPCs Destroyed . | . . Combat | -11 -10 -------- Run | Yrd Mat Hostile Shots Fired 85 | . 85 Missed 19 | . 19 Hits 66 | . 66 Projectile 66 | . 66 Damage Taken 625 | . 625 Core 251 | . 251 Absorbed by Shields . | . . Ignored by Resistances 195 | . 195 Core Remaining (%) 100 | 100 . Volleys Fired 50 | . 50 Largest 2 | . 2 Hottest 60 | . 60 Shots Fired 65 | . 65 Gun 65 | . 65 Cannon . | . . Launcher . | . . Special . | . . Kinetic 43 | . 43 Thermal 7 | . 7 Explosive . | . . Electromagnetic 15 | . 15 Robot Hit Streak 16 | . 16 Robot Miss Streak 7 | . 7 Penetration Max . | . . Secondary Targets 1 | . 1 Max Gunslinging Chain 1 | . 1 Shots Hit Robots 50 | . 50 Core Hits 24 | . 24 Critical Kills . | . . Critical Parts Destroyed . | . . Critical Strikes 1 | . 1 Corrupt 1 | . 1 Melee Attacks . | . . Impact . | . . Slashing . | . . Piercing . | . . Sneak Attacks . | . . Combat Hostiles . | . . Follow-up Attacks . | . . Damage Inflicted 798 | . 798 Guns 696 | . 696 Cannons . | . . Explosions 102 | . 102 Melee . | . . Ramming . | . . Kinetic 459 | . 459 Thermal 190 | . 190 Explosive . | . . Electromagnetic 149 | . 149 Impact . | . . Slashing . | . . Piercing . | . . Highest Corruption . | . . Average Corruption . | . . Corruption Purged . | . . Corruption Blocked . | . . Overload Shots . | . . Overflow Damage 7 | . 7 Projectiles . | . . Explosions 7 | . 7 Melee . | . . Knockbacks . | . . Impact . | . . Kinetic . | . . Secondary . | . . Self-Inflicted Damage 32 | . 32 Shots 1 | . 1 Rammed . | . . Targets Rammed . | . . Kicked . | . . Crushed . | . . Highest Temperature 83 | . 83 Average Temperature 22 | . 22 Received Heat Transfer 384 | . 384 Siege Activations . | . . Martial Activations . | . . Shielding Activations . | . . Robots Disrupted . | . . Combat Hostiles . | . . Robots Corrupted . | . . Combat Hostiles . | . . Parts Fried . | . . Impact Corruptions . | . . Robots Melted . | . . Combat Hostiles . | . . Parts Melted . | . . Heat Transferred 459 | . 459 Parts Sabotaged . | . . Parts Stolen . | . . Parts Stripped . | . . Power Chain Reactions 2 | . 2 Alert | -11 -10 ------- Run | Yrd Mat Maximum Alert Level . | . . Low Security (%) 100 | 100 100 Level 1 . | . . Level 2 . | . . Level 3 . | . . Level 4 . | . . Level 5 . | . . High Security . | . . Max Security . | . . Peak Influence 126 | . 126 Initial . | . . Average 45 | . 45 Influence Increases 301 | . 301 Destroy 0b10 Robot/C 200 | . 200 Destroy 0b10 Robot/NC 35 | . 35 Destroy Leader 42 | . 42 Successful Hack 6 | . 6 Disable Machine 9 | . 9 Destroy Structure 9 | . 9 Influence Decreases 293 | . 293 Time Decay 253 | . 253 Lost Part 40 | . 40 Squads Dispatched 2 | . 2 Investigation 2 | . 2 Extermination . | . . Reinforcement . | . . Assault . | . . Garrison . | . . Intercept . | . . Searches Triggered . | . . Construction Impeded . | . . Haulers Reinforced . | . . Active Scanning Responses . | . . Cargo Convoy Interrupts . | . . Stealth | -11 -10 --------- Run | Yrd Mat Distress Signals 2 | . 2 Communications Jammed . | . . Distress Signals . | . . Times Spotted 17 | . 17 Peak Tracking Total 4 | . 4 Tactical Retreats . | . . Traps | -11 -10 ------- Run | Yrd Mat Traps Triggered 2 | . 2 Indirectly . | . . Trap Hack Attempts . | . . Triggered . | . . Disarmed . | . . Reprogrammed . | . . Reused . | . . Traps Extracted . | . . Installed . | . . Triggered . | . . Machines | -11 -10 ---------- Run | Yrd Mat Machines Disabled 1 | . 1 Max in Single Turn 1 | . 1 Machines Repaired . | . . Machines Dismantled . | . . Machines Sabotaged . | . . Overloaded Fab Kills . | . . Hacking | -11 -10 --------- Run | Yrd Mat Machines Accessed 2 | . 2 Terminals 2 | . 2 Fabricators . | . . Repair Stations . | . . Recycling Units . | . . Scanalyzers . | . . Garrison Access . | . . Total Hacks 6 | . 6 Successful 3 | . 3 Failed 3 | . 3 Catastrophic . | . . Database Lockouts . | . . Manual 5 | . 5 Terminals 6 | . 6 Fabricators . | . . Repair Stations . | . . Recycling Units . | . . Scanalyzers . | . . Garrison Access . | . . Terminal Hacks 2 | . 2 Robot Analysis 1 | . 1 Registered Components 1 | . 1 Fabricator Hacks . | . . Repair Station Hacks . | . . Recycling Unit Hacks . | . . Scanalyzer . | . . Garrison Access Hacks . | . . Unauthorized Hacks 1 | . 1 Terminals 1 | . 1 Botnet 1 | . 1 Fabricators . | . . Repair Stations . | . . Recycling Units . | . . Scanalyzers . | . . Garrison Access . | . . Data Cores Recovered . | . . Used . | . . Hacking Detections 2 | . 2 Full Trace Events . | . . Feedback Events . | . . Feedback Blocked . | . . Robot Schematics Acquired . | . . Robots Built . | . . Authchips . | . . Time . | . . Total Robot Build Rating . | . . Part Schematics Acquired . | . . Parts Built . | . . Authchips . | . . Time . | . . Total Part Build Rating . | . . Part Studies Acquired . | . . Parts Repaired . | . . Time . | . . Parts Recycled . | . . Recycled Matter . | . . Retrieved Matter . | . . Retrieved Components . | . . Parts Scanalyzed . | . . Part Schematics Acquired . | . . Parts Damaged . | . . Bothacking | -11 -10 ------------ Run | Yrd Mat Used RIF Installer . | . . Robots Hacked . | . . Non-combat . | . . Combat . | . . Robot Hacks Applied . | . . Relay Couplers Released . | . . Fabnet Peak Effective % . | . . Robots Rewired . | . . Allies Hacked . | . . Hacks Repelled . | . . Allies | -11 -10 -------- Run | Yrd Mat Total Allies . | . . Largest Group . | . . Highest-Rated Group . | . . Highest-Rated Ally . | . . Total Orders . | . . Ally Attacks . | . . Total Damage . | . . Kills . | . . Allies Corrupted . | . . Allies Melted . | . . Intel | -11 -10 ------- Run | Yrd Mat Active Infowar (turns) . | . . Robot Analysis Total 1 | . 1 Derelict Logs Recovered . | . . Drone Launches . | . . Drone Recoveries . | . . Exploration | -11 -10 ------------- Run | Yrd Mat Turns Passed 620 | 4 616 Spaces Moved 357 | 1 356 Core 2 | . 2 Treads . | . . Legs 343 | 1 342 Wheels . | . . Hover 12 | . 12 Flight . | . . Fastest Speed 116 | 120 116 Average Speed 134 | 120 134 Slowest Speed 200 | 120 200 Overloaded Moves . | . . Propulsion Burnouts . | . . Robots Hopped . | . . Potential Cave-ins . | . . Cave-ins Triggered . | . . Exploration Rate (%) 28 | 2 55 Regions Visited 1 Branch Regions . Pre-discovered Areas . | . . Known Exits Taken . | . . Unknown Exits Taken 1 | 1 . Scrap Searched . | . . Spaces Dug . | . . Terrain Destroyed 6 | . 6 Melee . | . . Projectile . | . . AOE 6 | . 6 Terrain Rammed . | . . Walls Destroyed . | . . Machines Disabled . | . . Actions | -11 -10 --------- Run | Yrd Mat Total 436 | 5 431 Wait 1 | . 1 Move 356 | . 356 Hop . | . . Pick Up 10 | . 10 Fast Attach 2 | . 2 Attach 5 | . 5 Detach 1 | . 1 Swap 1 | 1 . Drop 10 | 4 6 Fire 50 | . 50 Melee . | . . Ram . | . . Kick . | . . Crush . | . . Escape Stasis . | . . Rewire . | . . Trap . | . . Miscellaneous . | . . Route ------- -11/Scrapyard -10/Materials (discovered 2 exits: [*Mat x2]) History --------- Turn | Location | Event 5 | -11/Scrapyard | Discovered new exit (range 0) 5 | -11/Scrapyard | Entered Materials 146 | -10/Materials | Discovered new exit (range 6) 300 | -10/Materials | Build established: Mutant 522 | -10/Materials | Discovered new exit (range 8) 589 | -10/Materials | Core integrity fell below 50% 615 | -10/Materials | Core integrity fell below 20% 621 | -10/Materials | Destroyed by G-34 Mercenary with Small Laser Last Messages --------------- 00563_ K-01 Serf collects debris. 00571_ Hover Unit destroyed. 00574_ R-06 Scavenger collects Visual Processing Unit. 00576_ G-34 Mercenary destroyed. 00578_ R-06 Scavenger collects Com. Wheel. 00580_ Acquired 41 matter. 00581_ R-06 Scavenger collects Hover Unit. 00581_ K-01 Serf collects debris. 00584_ Ion Engine destroyed. 00589_ K-01 Serf collects debris. 00597_ R-06 Scavenger collects Heat Sink. 00597_ K-01 Serf collects debris. 00600_ Assault Rifle destroyed. 00601_ K-01 Serf collects debris. 00604_ Hover Unit destroyed. 00606_ K-01 Serf collects debris. 00608_ R-06 Scavenger collects Aluminum Leg. 00611_ K-01 Serf collects debris. 00612_ R-06 Scavenger collects Aluminum Leg. 00614_ K-01 Serf destroyed. Map ----- +----------------------------------------------------+ | | | | | | | | | | | | | | | | | | | | | | | | | | | ????????????????????????????????########?????????? | | ????????????????????????????????# == #?????????? | | ????????????????????????????????# = ########### | | ????????????????????????????????# == ## # | | ?????????????????????#####??????# ## # | | ?????????????????????# #??????# ## # | | ?????????????????????# < #??????# ## """ # | | ?????????????????????# #??????# ## """ # | | ??]??????????????????# +??????# """ ## """ # | | ?????????????????????# #??????# """ ## """ # | | ?????????????????????# #??????# """ ## """ # | | ????????????????????## ##?????# ## # | | ????????????????????# @##########+########+#### | | ????????????????????# =%= | | ????????????????????# T g % ! % [### | | ????????????????????# g %%% %%#?? | | ????????????????????# #### * #####+######+#### | | ????????????????????###+###??#= r# #=*""" | | ?????????????????????????????# # # "T" | | ?????????????????????????????# + # | | ?????????????????????????????#! %# # | | ?????????????????????????????# %###########* | | ?????????????????????????????# #?????????# | | ????????????????????????????? ?????????####### | | ????????????????????????????? ??##########???? | | ????????????????????????????# T ?+ #???? | | ????????????????????????????# #?# "" #???? | | ????????????????????????????# #?# "Y #???? | | ?????????????????????????????# ##?# "" #???? | | ?????????????????????????????# #??# #???? | | ?????????????????????????????# ?#??# """ ##### | | ??????????????????!??????????# ???# """ + | | ?????????????????????????????# ???# """ ##### | | ?????????????????????????????# ???# #???? | | ?????????????????????????????# ########+####???? | | ?????????????????????????????# #?##### | | ?????????????????????????????# #?# | +----------------------------------------------------+ Best States ------------- Heat Dissipation 25 Energy Generation 10 Energy Capacity 250 Matter Stores 298 Matter Capacity 300 Sight Range 16 Terrain Scan Density 10 Resistance: KI 20 Resistance: TH 20 Resistance: EX 20 Resistance: EM 20 Resistance: I 20 Resistance: S 20 Resistance: P 20 Evasion (%) 55 Offensive Hacking 10 Item Schematics ----------------- None Robot Schematics ------------------ None Fabricated ------------ Nothing Repaired ---------- Nothing Studied --------- None Alien Tech Used ----------------- None Achievements -------------- None Challenges ------------ None Game ------ Seed LinkedNovaDerivative Manual? 0 Play Time 00:07:01 Cumulative 521.5 hours Start 2026.03.21 @ 01:54:29 End 2026.03.21 @ 02:03:57 Sessions 1 Manual Loads 0 Difficulty Adventurer Special Mode None Game No. 372 Rogue 63 Adventurer 283 Explorer 26 Win Type - Total 2 Types 2/0/0/0/0/0/0/0/0/0 Lore% 84 Gallery% 72 Achievement% 54 Wizard Run 0 Options --------- Layout 2 ASCII 0 Keyboard 0 Movement Mouse Keybinds 0 Fullscreen 0 Font 16/Cog Map View 64x51 Zoom Use 0% Tactical HUD 1 Map Filters NONE Filters BRIGHTNESS(115)|SATURATION(100)|LOW_CONTRAST(0,16,30) Steam 1 RUN: 9ff552ea-f884-453f-a8d1-02e73b359079